[Event "*** Titled Tuesday Blitz"]
[Site "Chess.com"]
[Date "2020.11.10"]
[Round "7"]
[White "Sven_Tica"]
[Black "PSvidler"]
[Result "0-1"]
[WhiteElo "2698"]
[BlackElo "2876"]
[TimeControl "180+1"]
[EndTime "11:23:05 PST"]
[Termination "PSvidler won by resignation"]

1. d4 {[%clk 0:03:00.9]} 1... Nf6 {[%clk 0:02:57.7]} 2. Nf3 {[%clk 0:03:00.9]}
2... g6 {[%clk 0:02:57.7]} 3. Nbd2 {[%clk 0:03:01.4]} 3... Bg7 {[%clk
0:02:54.6]} 4. e4 {[%clk 0:03:01.3]} 4... O-O {[%clk 0:02:53.5]} 5. Bd3 {[%clk
0:02:56.5]} 5... d6 {[%clk 0:02:52.7]} 6. O-O {[%clk 0:02:55.8]} 6... c5 {[%clk
0:02:51]} 7. c3 {[%clk 0:02:54.4]} 7... cxd4 {[%clk 0:02:48.2]} 8. cxd4 {[%clk
0:02:53.9]} 8... Nc6 {[%clk 0:02:48]} 9. h3 {[%clk 0:02:53.5]} 9... Bd7 {[%clk
0:02:39.1]} 10. a3 {[%clk 0:02:51.2]} 10... Rc8 {[%clk 0:02:38.9]} 11. Re1
{[%clk 0:02:49.8]} 11... a6 {[%clk 0:02:17.6]} 12. Nf1 {[%clk 0:02:43.9]} 12...
Qb6 {[%clk 0:02:17.4]} 13. Bc2 {[%clk 0:01:54.4]} 13... d5 {[%clk 0:01:37]} 14.
e5 {[%clk 0:01:26.9]} 14... Ne4 {[%clk 0:01:36.3]} 15. Bxe4 {[%clk 0:01:27.6]}
15... dxe4 {[%clk 0:01:36.4]} 16. Rxe4 {[%clk 0:01:28.5]} 16... Rfd8 {[%clk
0:01:33.9]} 17. d5 {[%clk 0:01:11]} 17... Be6 {[%clk 0:01:11.7]} 18. Be3 {[%clk
0:01:10.4]} 18... Qxb2 {[%clk 0:01:07]} 19. Rb1 {[%clk 0:01:06.4]} 19... Qxa3
{[%clk 0:01:06.9]} 20. Ra4 {[%clk 0:01:02.7]} 20... Qc3 {[%clk 0:01:06.6]} 21.
Bd2 {[%clk 0:01:00.5]} 21... Rxd5 {[%clk 0:00:54.4]} 22. Bxc3 {[%clk 0:00:53.6]}
22... Rxd1 {[%clk 0:00:53.9]} 23. Rxd1 {[%clk 0:00:54.2]} 23... Bb3 {[%clk
0:00:54.7]} 24. Raa1 {[%clk 0:00:53.8]} 24... Bxd1 {[%clk 0:00:54.6]} 25. Rxd1
{[%clk 0:00:54.7]} 25... b5 {[%clk 0:00:52.6]} 26. Ra1 {[%clk 0:00:52]} 26... b4
{[%clk 0:00:52.4]} 27. Bb2 {[%clk 0:00:52.1]} 27... a5 {[%clk 0:00:52.7]} 28.
Ne3 {[%clk 0:00:52.7]} 28... Ra8 {[%clk 0:00:51.2]} 29. Nd5 {[%clk 0:00:51.2]}
29... e6 {[%clk 0:00:49.2]} 30. Nb6 {[%clk 0:00:50.1]} 30... Rb8 {[%clk
0:00:48.6]} 31. Na4 {[%clk 0:00:50]} 31... Bf8 {[%clk 0:00:47.8]} 32. Rc1 {[%clk
0:00:48.3]} 32... Ne7 {[%clk 0:00:42.5]} 33. Nd4 {[%clk 0:00:47.2]} 33... Nd5
{[%clk 0:00:41.2]} 34. Nb3 {[%clk 0:00:46.2]} 34... Rb5 {[%clk 0:00:35.2]} 35.
Rc8 {[%clk 0:00:42.9]} 35... Kg7 {[%clk 0:00:34.7]} 36. Bc1 {[%clk 0:00:42.5]}
36... h5 {[%clk 0:00:33.6]} 37. Bh6+ {[%clk 0:00:39.6]} 37... Kxh6 {[%clk
0:00:33.4]} 38. Rxf8 {[%clk 0:00:40.2]} 38... Nc3 {[%clk 0:00:33.6]} 39. Nac5
{[%clk 0:00:28.9]} 39... a4 {[%clk 0:00:33.4]} 40. Nxa4 {[%clk 0:00:23.9]} 40...
Nxa4 {[%clk 0:00:32.2]} 41. Rxf7 {[%clk 0:00:24.8]} 41... Rxe5 {[%clk
0:00:31.6]} 42. Rb7 {[%clk 0:00:24.2]} 42... Re4 {[%clk 0:00:30.7]} 43. Nd2
{[%clk 0:00:22.8]} 43... Re1+ {[%clk 0:00:28.8]} 44. Kh2 {[%clk 0:00:22.5]}
44... Re2 {[%clk 0:00:29.2]} 45. Nf3 {[%clk 0:00:22.8]} 45... Rxf2 {[%clk
0:00:20.2]} 46. Rxb4 {[%clk 0:00:22.3]} 46... Nc5 {[%clk 0:00:20.2]} 47. Rc4
{[%clk 0:00:22.5]} 47... Nd3 {[%clk 0:00:20.2]} 48. Kg3 {[%clk 0:00:20.9]} 48...
Re2 {[%clk 0:00:20]} 49. Rd4 {[%clk 0:00:18]} 49... Nf2 {[%clk 0:00:18.2]} 50.
Ng1 {[%clk 0:00:16.9]} 50... Ra2 {[%clk 0:00:16.2]} 51. Rf4 {[%clk 0:00:16.4]}
51... Nh1+ {[%clk 0:00:15]} 52. Kh2 {[%clk 0:00:16.6]} 52... Nf2 {[%clk
0:00:15.1]} 53. Kg3 {[%clk 0:00:17.2]} 53... Nd1 {[%clk 0:00:13.7]} 54. Rf7
{[%clk 0:00:17.5]} 54... Ne3 {[%clk 0:00:13.1]} 55. Rf2 {[%clk 0:00:14.2]} 55...
Nf5+ {[%clk 0:00:11.2]} 56. Kf3 {[%clk 0:00:14.4]} 56... Nh4+ {[%clk 0:00:10.9]}
57. Kg3 {[%clk 0:00:14.3]} 57... Nf5+ {[%clk 0:00:11.3]} 58. Kf3 {[%clk
0:00:14.8]} 58... Nd4+ {[%clk 0:00:11.6]} 59. Kg3 {[%clk 0:00:15.1]} 59... h4+
{[%clk 0:00:11.8]} 0-1

[Event "*** Titled Tuesday Blitz"]
[Site "Chess.com"]
[Date "2020.11.10"]
[Round "7"]
[White "Deepweb2020"]
[Black "tteshan"]
[Result "0-1"]
[WhiteElo "2236"]
[BlackElo "2365"]
[TimeControl "180+1"]
[EndTime "11:23:06 PST"]
[Termination "tteshan won by resignation"]

1. d4 {[%clk 0:02:58.3]} 1... d5 {[%clk 0:03:00.1]} 2. c4 {[%clk 0:02:56.3]}
2... dxc4 {[%clk 0:03:01]} 3. e3 {[%clk 0:02:55.6]} 3... Nf6 {[%clk 0:03:00.8]}
4. Bxc4 {[%clk 0:02:55.5]} 4... e6 {[%clk 0:03:01.1]} 5. Nf3 {[%clk 0:02:54.3]}
5... a6 {[%clk 0:03:01.5]} 6. Bd2 {[%clk 0:02:52.3]} 6... b5 {[%clk 0:03:01.9]}
7. Be2 {[%clk 0:02:52]} 7... Bb7 {[%clk 0:03:02.5]} 8. Qc2 {[%clk 0:02:52.1]}
8... Nbd7 {[%clk 0:03:01.6]} 9. Ba5 {[%clk 0:02:51.5]} 9... Rc8 {[%clk
0:02:57.9]} 10. Nbd2 {[%clk 0:02:48.4]} 10... Bd6 {[%clk 0:02:57.7]} 11. O-O
{[%clk 0:02:44.6]} 11... Qe7 {[%clk 0:02:57.7]} 12. e4 {[%clk 0:02:35.6]} 12...
e5 {[%clk 0:02:56.1]} 13. d5 {[%clk 0:02:23.2]} 13... c6 {[%clk 0:02:51.2]} 14.
dxc6 {[%clk 0:02:12.6]} 14... Rxc6 {[%clk 0:02:51.2]} 15. Qd1 {[%clk 0:01:52.6]}
15... O-O {[%clk 0:02:50.8]} 16. Rc1 {[%clk 0:01:51.1]} 16... Rxc1 {[%clk
0:02:48.2]} 17. Qxc1 {[%clk 0:01:48.7]} 17... Nxe4 {[%clk 0:02:43.6]} 18. Nxe4
{[%clk 0:01:38]} 18... Bxe4 {[%clk 0:02:44.5]} 19. Qe3 {[%clk 0:01:38.8]} 19...
Bb7 {[%clk 0:02:40.5]} 20. Qa7 {[%clk 0:01:37.8]} 20... Nf6 {[%clk 0:02:30.7]}
21. Rd1 {[%clk 0:01:32.9]} 21... Bc5 {[%clk 0:02:28.7]} 22. Bb6 {[%clk
0:01:29.3]} 22... Bxb6 {[%clk 0:01:55.3]} 23. Qxb6 {[%clk 0:01:30.2]} 23... Nd5
{[%clk 0:01:53.2]} 24. Qa5 {[%clk 0:01:11.3]} 24... Rc8 {[%clk 0:01:50.6]} 25.
Qd2 {[%clk 0:01:00.4]} 25... h6 {[%clk 0:01:47.9]} 26. h3 {[%clk 0:01:00.1]}
26... Nf4 {[%clk 0:01:26.6]} 27. Qe3 {[%clk 0:00:56.8]} 27... Rc2 {[%clk
0:01:16.2]} 28. Rd2 {[%clk 0:00:55.5]} 28... Rxd2 {[%clk 0:01:10.3]} 29. Qxd2
{[%clk 0:00:56.4]} 29... Bxf3 {[%clk 0:01:01.8]} 30. Bxf3 {[%clk 0:00:56.4]}
30... g6 {[%clk 0:00:45.9]} 31. Kh2 {[%clk 0:00:41.9]} 31... Qc7 {[%clk
0:00:39.4]} 32. g3 {[%clk 0:00:35.9]} 32... Ne6 {[%clk 0:00:38.4]} 33. Qd5
{[%clk 0:00:33.5]} 33... Qc2 {[%clk 0:00:29.1]} 34. Kg2 {[%clk 0:00:27.4]} 34...
Qxb2 {[%clk 0:00:26.3]} 35. h4 {[%clk 0:00:22.8]} 35... Kg7 {[%clk 0:00:25.6]}
36. Bg4 {[%clk 0:00:18.4]} 36... Qd4 {[%clk 0:00:23.5]} 37. Bxe6 {[%clk
0:00:15.6]} 37... fxe6 {[%clk 0:00:20.7]} 38. Qxe6 {[%clk 0:00:16.5]} 38... Qe4+
{[%clk 0:00:21]} 39. Kg1 {[%clk 0:00:13]} 39... Qb1+ {[%clk 0:00:19.7]} 40. Kg2
{[%clk 0:00:11.7]} 40... Qf5 {[%clk 0:00:20]} 41. Qxa6 {[%clk 0:00:07.9]} 41...
e4 {[%clk 0:00:20.3]} 42. Qb7+ {[%clk 0:00:05.6]} 42... Kf6 {[%clk 0:00:18.6]}
43. Qc6+ {[%clk 0:00:05.3]} 43... Ke7 {[%clk 0:00:18.2]} 44. Qc7+ {[%clk
0:00:05.3]} 44... Ke6 {[%clk 0:00:17.2]} 45. Qc6+ {[%clk 0:00:04.5]} 45... Kf7
{[%clk 0:00:16.9]} 46. Qc7+ {[%clk 0:00:04.3]} 46... Kf6 {[%clk 0:00:17.3]} 47.
Qd6+ {[%clk 0:00:04.4]} 47... Qe6 {[%clk 0:00:16.9]} 48. Qf4+ {[%clk 0:00:04.8]}
48... Kg7 {[%clk 0:00:16.7]} 49. Qe3 {[%clk 0:00:04.5]} 49... Qxa2 {[%clk
0:00:14.9]} 50. Qxe4 {[%clk 0:00:04.9]} 50... Qc4 {[%clk 0:00:09.3]} 51. Qe5+
{[%clk 0:00:05]} 51... Kf7 {[%clk 0:00:09.1]} 52. Qc7+ {[%clk 0:00:05.1]} 52...
Qxc7 {[%clk 0:00:09]} 0-1

[Event "*** Titled Tuesday Blitz"]
[Site "Chess.com"]
[Date "2020.11.10"]
[Round "7"]
[White "Kavyev_Ruslan"]
[Black "26andrej26"]
[Result "0-1"]
[WhiteElo "2398"]
[BlackElo "2542"]
[TimeControl "180+1"]
[EndTime "11:23:07 PST"]
[Termination "26andrej26 won by resignation"]

1. d4 {[%clk 0:03:00.9]} 1... Nf6 {[%clk 0:03:00.1]} 2. c4 {[%clk 0:03:00.8]}
2... g6 {[%clk 0:03:00]} 3. Nc3 {[%clk 0:03:00]} 3... Bg7 {[%clk 0:03:00.9]} 4.
e4 {[%clk 0:03:00]} 4... d6 {[%clk 0:03:01.8]} 5. Be2 {[%clk 0:03:00.5]} 5...
O-O {[%clk 0:03:01.3]} 6. Be3 {[%clk 0:03:01.1]} 6... e5 {[%clk 0:03:01]} 7. d5
{[%clk 0:03:01.1]} 7... a5 {[%clk 0:03:01.2]} 8. g4 {[%clk 0:03:00.8]} 8... Na6
{[%clk 0:03:01.7]} 9. h4 {[%clk 0:02:58.5]} 9... Nc5 {[%clk 0:03:01.2]} 10. f3
{[%clk 0:02:58.8]} 10... c6 {[%clk 0:03:01.2]} 11. h5 {[%clk 0:02:58.7]} 11...
a4 {[%clk 0:03:00.8]} 12. Qd2 {[%clk 0:02:55.1]} 12... Qa5 {[%clk 0:03:00.6]}
13. h6 {[%clk 0:02:50]} 13... Bh8 {[%clk 0:02:59.6]} 14. Nh3 {[%clk 0:02:43]}
14... cxd5 {[%clk 0:02:57.2]} 15. cxd5 {[%clk 0:02:41.7]} 15... Bd7 {[%clk
0:02:46.1]} 16. Nf2 {[%clk 0:02:40.1]} 16... b5 {[%clk 0:02:42.8]} 17. Rc1
{[%clk 0:02:35.6]} 17... Rac8 {[%clk 0:02:30.1]} 18. O-O {[%clk 0:02:26.7]}
18... Ne8 {[%clk 0:02:19.7]} 19. Nd3 {[%clk 0:02:26.7]} 19... Nxd3 {[%clk
0:02:04.2]} 20. Bxd3 {[%clk 0:02:27.6]} 20... f5 {[%clk 0:01:43.3]} 21. gxf5
{[%clk 0:02:13.7]} 21... gxf5 {[%clk 0:01:43.6]} 22. Nxb5 {[%clk 0:02:08.2]}
22... Qd8 {[%clk 0:01:32.3]} 23. Rxc8 {[%clk 0:01:50.7]} 23... Bxc8 {[%clk
0:01:33.2]} 24. Na7 {[%clk 0:01:50.9]} 24... f4 {[%clk 0:01:29]} 25. Nc6 {[%clk
0:01:48.2]} 25... Qg5+ {[%clk 0:01:24.6]} 26. Qg2 {[%clk 0:01:36.9]} 26... Qxg2+
{[%clk 0:01:24.4]} 27. Kxg2 {[%clk 0:01:37.8]} 27... fxe3 {[%clk 0:01:25.3]} 28.
Ne7+ {[%clk 0:01:38.2]} 28... Kf7 {[%clk 0:01:22.8]} 29. Nxc8 {[%clk 0:01:39.1]}
29... Rg8+ {[%clk 0:01:12.7]} 30. Kh3 {[%clk 0:01:33.8]} 30... Rg6 {[%clk
0:01:01]} 31. Bb5 {[%clk 0:01:31.4]} 31... Rxh6+ {[%clk 0:01:01]} 32. Kg2 {[%clk
0:01:31.4]} 32... Rg6+ {[%clk 0:01:01.1]} 33. Kh3 {[%clk 0:01:29.8]} 33... Ng7
{[%clk 0:00:48.5]} 34. f4 {[%clk 0:01:10.1]} 34... Rh6+ {[%clk 0:00:17.4]} 35.
Kg4 {[%clk 0:01:09.8]} 35... Rg6+ {[%clk 0:00:12.3]} 36. Kf3 {[%clk 0:01:07.9]}
36... Nh5 {[%clk 0:00:12.7]} 37. fxe5 {[%clk 0:00:56.1]} 37... Bxe5 {[%clk
0:00:13.6]} 38. Kxe3+ {[%clk 0:00:56.5]} 38... Kg7 {[%clk 0:00:13.8]} 39. Ne7
{[%clk 0:00:53.3]} 39... Rg3+ {[%clk 0:00:13.2]} 40. Kf2 {[%clk 0:00:49.2]}
40... Rh3 {[%clk 0:00:11.9]} 41. Nf5+ {[%clk 0:00:48.4]} 41... Kf6 {[%clk
0:00:12]} 42. Ke1 {[%clk 0:00:24.5]} 42... Nf4 {[%clk 0:00:11.8]} 43. Bxa4
{[%clk 0:00:21.9]} 43... Rh2 {[%clk 0:00:11.9]} 44. Bb3 {[%clk 0:00:15.6]} 44...
Rxb2 {[%clk 0:00:11.5]} 45. Rf3 {[%clk 0:00:11.4]} 45... h5 {[%clk 0:00:10.9]}
46. Kf1 {[%clk 0:00:07.8]} 46... Kg5 {[%clk 0:00:10.6]} 47. Rg3+ {[%clk
0:00:08.1]} 47... Kf6 {[%clk 0:00:10.2]} 48. Rg8 {[%clk 0:00:07.5]} 48... Rb1+
{[%clk 0:00:07.4]} 49. Kf2 {[%clk 0:00:07.4]} 49... Rb2+ {[%clk 0:00:06.5]} 50.
Kf3 {[%clk 0:00:07.3]} 50... Rb1 {[%clk 0:00:03.6]} 51. Rh8 {[%clk 0:00:05.8]}
51... Kg6 {[%clk 0:00:03.6]} 52. Nh4+ {[%clk 0:00:04.2]} 52... Kg5 {[%clk
0:00:03.6]} 53. Ng2 {[%clk 0:00:04]} 53... Bxh8 {[%clk 0:00:03.4]} 54. Nxf4
{[%clk 0:00:03.9]} 54... Rf1+ {[%clk 0:00:03.8]} 55. Ke2 {[%clk 0:00:04.4]}
55... Rxf4 {[%clk 0:00:04.7]} 0-1

[Event "*** Titled Tuesday Blitz"]
[Site "Chess.com"]
[Date "2020.11.10"]
[Round "7"]
[White "annacramling"]
[Black "Luklei18"]
[Result "0-1"]
[WhiteElo "2031"]
[BlackElo "2310"]
[TimeControl "180+1"]
[EndTime "11:23:07 PST"]
[Termination "Luklei18 won on time"]

1. d4 {[%clk 0:03:00.9]} 1... d6 {[%clk 0:02:58.2]} 2. Nf3 {[%clk 0:03:00]} 2...
g6 {[%clk 0:02:57.7]} 3. c4 {[%clk 0:02:59.6]} 3... Bg7 {[%clk 0:02:57]} 4. e4
{[%clk 0:02:59.7]} 4... Bg4 {[%clk 0:02:56.2]} 5. Be2 {[%clk 0:02:59.3]} 5...
Nc6 {[%clk 0:02:55.3]} 6. Be3 {[%clk 0:02:52.4]} 6... e5 {[%clk 0:02:51.4]} 7.
d5 {[%clk 0:02:44.9]} 7... Bxf3 {[%clk 0:02:51.2]} 8. Bxf3 {[%clk 0:02:41.8]}
8... Nd4 {[%clk 0:02:51.7]} 9. Nc3 {[%clk 0:02:40.6]} 9... Ne7 {[%clk
0:02:32.7]} 10. Bxd4 {[%clk 0:02:10.7]} 10... exd4 {[%clk 0:02:32.5]} 11. Ne2
{[%clk 0:02:10.2]} 11... c5 {[%clk 0:02:29.5]} 12. dxc6 {[%clk 0:02:06.7]} 12...
Qa5+ {[%clk 0:02:18.6]} 13. Qd2 {[%clk 0:02:03.8]} 13... Qxd2+ {[%clk
0:02:18.4]} 14. Kxd2 {[%clk 0:02:04.7]} 14... bxc6 {[%clk 0:02:19.1]} 15. Kd3
{[%clk 0:01:53.9]} 15... c5 {[%clk 0:01:22.6]} 16. e5 {[%clk 0:01:41.4]} 16...
Rd8 {[%clk 0:01:22.8]} 17. exd6 {[%clk 0:01:40.9]} 17... Rxd6 {[%clk 0:01:22.9]}
18. Ng3 {[%clk 0:01:40.2]} 18... f5 {[%clk 0:01:18.8]} 19. Rhe1 {[%clk 0:01:38]}
19... Kd7 {[%clk 0:01:18.3]} 20. Ne2 {[%clk 0:01:30.8]} 20... Rb8 {[%clk
0:01:17.9]} 21. b3 {[%clk 0:01:30.2]} 21... Bh6 {[%clk 0:01:13.8]} 22. g4 {[%clk
0:01:05.5]} 22... a5 {[%clk 0:01:11.9]} 23. Ng3 {[%clk 0:01:02.2]} 23... a4
{[%clk 0:01:00.2]} 24. Rab1 {[%clk 0:00:53.3]} 24... Rdb6 {[%clk 0:00:56.6]} 25.
gxf5 {[%clk 0:00:36.2]} 25... gxf5 {[%clk 0:00:46.5]} 26. Kc2 {[%clk 0:00:17.5]}
26... axb3+ {[%clk 0:00:46.1]} 27. axb3 {[%clk 0:00:17.3]} 27... d3+ {[%clk
0:00:37.5]} 28. Kxd3 {[%clk 0:00:08.3]} 28... Rxb3+ {[%clk 0:00:37.9]} 29. Rxb3
{[%clk 0:00:08.3]} 29... Rxb3+ {[%clk 0:00:38.8]} 30. Ke2 {[%clk 0:00:08.9]}
30... Rc3 {[%clk 0:00:35.2]} 31. Rd1+ {[%clk 0:00:08.5]} 31... Ke6 {[%clk
0:00:34.2]} 32. Bd5+ {[%clk 0:00:07.3]} 32... Nxd5 {[%clk 0:00:34.7]} 33. cxd5+
{[%clk 0:00:07.7]} 33... Ke5 {[%clk 0:00:27]} 34. d6 {[%clk 0:00:08]} 34... Bg5
{[%clk 0:00:27.5]} 35. d7 {[%clk 0:00:06.6]} 35... Bd8 {[%clk 0:00:27.8]} 36.
Nh5 {[%clk 0:00:05]} 36... Ra3 {[%clk 0:00:16.5]} 37. f4+ {[%clk 0:00:04.8]}
37... Ke4 {[%clk 0:00:10.1]} 38. Ng7 {[%clk 0:00:05.2]} 38... Ra2+ {[%clk
0:00:10.3]} 39. Rd2 {[%clk 0:00:03.4]} 39... Rxd2+ {[%clk 0:00:05]} 40. Kxd2
{[%clk 0:00:04.3]} 40... Kd5 {[%clk 0:00:03.1]} 41. Nxf5 {[%clk 0:00:04.5]}
41... Ke6 {[%clk 0:00:03.2]} 42. Ng7+ {[%clk 0:00:03.7]} 42... Kxd7 {[%clk
0:00:03.7]} 43. Nf5 {[%clk 0:00:02.4]} 43... Ke6 {[%clk 0:00:04]} 44. Ne3 {[%clk
0:00:02.9]} 44... Bc7 {[%clk 0:00:03.3]} 45. Kd3 {[%clk 0:00:03.1]} 45... Bxf4
{[%clk 0:00:03.2]} 46. h3 {[%clk 0:00:03.5]} 46... Bxe3 {[%clk 0:00:03.5]} 47.
Kxe3 {[%clk 0:00:04.1]} 47... Kd5 {[%clk 0:00:04.4]} 48. Kd3 {[%clk 0:00:04.6]}
48... h5 {[%clk 0:00:04.7]} 49. Kc3 {[%clk 0:00:04.9]} 49... h4 {[%clk
0:00:04.5]} 50. Kd3 {[%clk 0:00:05.1]} 50... Ke5 {[%clk 0:00:04.6]} 51. Kc3
{[%clk 0:00:06]} 51... Kf4 {[%clk 0:00:05.5]} 52. Kc4 {[%clk 0:00:06.8]} 52...
Kg3 {[%clk 0:00:06.4]} 53. Kxc5 {[%clk 0:00:07.7]} 53... Kxh3 {[%clk 0:00:07.3]}
54. Kd4 {[%clk 0:00:08.6]} 54... Kg2 {[%clk 0:00:08.2]} 55. Ke3 {[%clk
0:00:09.5]} 55... h3 {[%clk 0:00:09.1]} 56. Ke2 {[%clk 0:00:10.4]} 56... h2
{[%clk 0:00:10]} 0-1

[Event "*** Titled Tuesday Blitz"]
[Site "Chess.com"]
[Date "2020.11.10"]
[Round "7"]
[White "eljanov"]
[Black "GM_LOADING"]
[Result "0-1"]
[WhiteElo "2775"]
[BlackElo "2477"]
[TimeControl "180+1"]
[EndTime "11:23:10 PST"]
[Termination "GM_LOADING won on time"]

1. e4 {[%clk 0:03:00.9]} 1... e5 {[%clk 0:02:57]} 2. Nf3 {[%clk 0:03:00.5]} 2...
Nc6 {[%clk 0:02:56.9]} 3. Bc4 {[%clk 0:03:00.1]} 3... Nf6 {[%clk 0:02:55.8]} 4.
d3 {[%clk 0:03:00]} 4... h6 {[%clk 0:02:55.9]} 5. c3 {[%clk 0:02:59.6]} 5... d6
{[%clk 0:02:50.4]} 6. O-O {[%clk 0:02:59.3]} 6... g6 {[%clk 0:02:48.2]} 7. Nbd2
{[%clk 0:02:58]} 7... Bg7 {[%clk 0:02:48.2]} 8. a4 {[%clk 0:02:57.8]} 8... O-O
{[%clk 0:02:47.8]} 9. a5 {[%clk 0:02:58.2]} 9... a6 {[%clk 0:02:47.5]} 10. Re1
{[%clk 0:02:53.6]} 10... Bd7 {[%clk 0:02:46.7]} 11. h3 {[%clk 0:02:52.2]} 11...
Qe7 {[%clk 0:02:46.6]} 12. Nf1 {[%clk 0:02:48.5]} 12... Rae8 {[%clk 0:02:44.9]}
13. Ng3 {[%clk 0:02:37.9]} 13... Nh7 {[%clk 0:02:35.2]} 14. d4 {[%clk
0:02:31.7]} 14... Ng5 {[%clk 0:02:17.6]} 15. Nxg5 {[%clk 0:02:10]} 15... hxg5
{[%clk 0:02:18.5]} 16. Be3 {[%clk 0:02:07.2]} 16... exd4 {[%clk 0:02:07.5]} 17.
cxd4 {[%clk 0:02:06.9]} 17... g4 {[%clk 0:02:08]} 18. hxg4 {[%clk 0:01:56.8]}
18... Qh4 {[%clk 0:02:08]} 19. g5 {[%clk 0:01:48.2]} 19... Bg4 {[%clk
0:01:21.4]} 20. Qd2 {[%clk 0:01:45]} 20... Re7 {[%clk 0:00:45.6]} 21. Ra3 {[%clk
0:01:38.6]} 21... Rfe8 {[%clk 0:00:44.7]} 22. Bd5 {[%clk 0:01:38.6]} 22... Nd8
{[%clk 0:00:39.4]} 23. b4 {[%clk 0:01:15.4]} 23... c6 {[%clk 0:00:38.3]} 24. Ba2
{[%clk 0:01:16]} 24... Ne6 {[%clk 0:00:34.1]} 25. d5 {[%clk 0:01:11.6]} 25...
cxd5 {[%clk 0:00:31.2]} 26. Bxd5 {[%clk 0:01:08.6]} 26... Nc7 {[%clk 0:00:31.4]}
27. Ba2 {[%clk 0:00:51.1]} 27... Nb5 {[%clk 0:00:22.8]} 28. Rd3 {[%clk
0:00:50.4]} 28... Rc8 {[%clk 0:00:22.4]} 29. Rc1 {[%clk 0:00:41.6]} 29... Rxc1+
{[%clk 0:00:21.2]} 30. Qxc1 {[%clk 0:00:41.8]} 30... Rc7 {[%clk 0:00:21.8]} 31.
Qd2 {[%clk 0:00:39]} 31... Be5 {[%clk 0:00:22]} 32. Nf1 {[%clk 0:00:34.6]} 32...
Nc3 {[%clk 0:00:14.3]} 33. f3 {[%clk 0:00:22.1]} 33... Nxa2 {[%clk 0:00:11.9]}
34. Qxa2 {[%clk 0:00:21.9]} 34... Be6 {[%clk 0:00:12.2]} 35. Qd2 {[%clk
0:00:20.8]} 35... Bc4 {[%clk 0:00:11.4]} 36. Ra3 {[%clk 0:00:19.1]} 36... Bxf1
{[%clk 0:00:11.3]} 37. Kxf1 {[%clk 0:00:19.5]} 37... Qh1+ {[%clk 0:00:10.3]} 38.
Kf2 {[%clk 0:00:18.8]} 38... Qh4+ {[%clk 0:00:10.6]} 39. Kf1 {[%clk 0:00:18.1]}
39... Bg3 {[%clk 0:00:08.2]} 40. Rc3 {[%clk 0:00:16.5]} 40... Qh1+ {[%clk
0:00:08]} 41. Bg1 {[%clk 0:00:16.7]} 41... Rxc3 {[%clk 0:00:06.7]} 42. Qxc3
{[%clk 0:00:17.6]} 42... Bh2 {[%clk 0:00:07]} 43. Qd4 {[%clk 0:00:12.3]} 43...
Be5 {[%clk 0:00:06]} 44. Qa7 {[%clk 0:00:11.3]} 44... Bh2 {[%clk 0:00:05.4]} 45.
Qf2 {[%clk 0:00:09.9]} 45... Be5 {[%clk 0:00:04.2]} 46. Ke2 {[%clk 0:00:07.8]}
46... Qh8 {[%clk 0:00:02.3]} 47. Qa7 {[%clk 0:00:07.3]} 47... Qh4 {[%clk
0:00:01.7]} 48. Qxb7 {[%clk 0:00:06.1]} 48... Qxg5 {[%clk 0:00:02.2]} 49. Qxa6
{[%clk 0:00:03.4]} 49... Qxg2+ {[%clk 0:00:02.3]} 50. Bf2 {[%clk 0:00:02.3]}
50... Bd4 {[%clk 0:00:02.8]} 51. Qc8+ {[%clk 0:00:01.5]} 51... Kh7 {[%clk
0:00:03]} 52. Kd3 {[%clk 0:00:01.8]} 52... Qxf2 {[%clk 0:00:03.4]} 53. Qh3+
{[%clk 0:00:01.3]} 53... Kg7 {[%clk 0:00:04.1]} 54. Kc4 {[%clk 0:00:01.7]} 54...
Qe3 {[%clk 0:00:04]} 55. Kd5 {[%clk 0:00:01.4]} 55... Qc3 {[%clk 0:00:04.9]} 0-1